[Event "4th Baskent University Open 2019"]
[Site "Ankara"]
[Date "2019.06.18"]
[Round "3"]
[White "Yildirim, Ibrahim Halil"]
[Black "Tepeli, Sugra"]
[Result "1/2-1/2"]
[ECO "C28"]
[WhiteElo "1787"]
[BlackElo "1426"]
[Annotator "NA"]
[PlyCount "63"]
[EventDate "2019.06.18"]
[EventType "swiss"]
[EventCountry "TUR"]
[SourceTitle "playchess.com"]
[Source "ChessBase"]
[SourceQuality "1"]
[TimeControl "5400+30"]

1. e4 {[%emt 0:00:30]} e5 {[%emt 0:00:30]} 2. Bc4 {[%emt 0:00:30]} Nf6 {[%emt 0:00:00]} 3. d3 {[%emt 0:00:00]} Nc6 {[%emt 0:00:00]} 4. Nc3 Na5 {[%emt 0:00:30]} 5. Nge2 {[%emt 0:00:00]} Bc5 {[%emt 0:01:30]} 6. O-O {[%emt 0:11:00]} O-O {[%emt 0:00:00]} 7. a3 {[%emt 0:07:30]} Nxc4 {[%emt 0:02:00]} 8. dxc4 {[%emt 0:00:30]} d6 {[%emt 0:01:30]} 9. Qd3 {[%emt 0:05:30]} Be6 {[%emt 0:02:30]} 10. b4 {[%emt 0:18:30]} Bb6 {[%emt 0:00:30]} 11. Nd5 {[%emt 0:01:30]} Nxd5 {[%emt 0:04:30]} 12. cxd5 {[%emt 0:01:30]} Bd7 {[%emt 0:02:30]} 13. Be3 {[%emt 0:04:30]} Bxe3 {[%emt 0:00:30]} 14. Qxe3 {[%emt 0:02:30]} f5 {[%emt 0:01:30]} 15. exf5 {[%emt 0:24:26]} Bxf5 {[%emt 0:00:30]} 16. c4 {[%emt 0:00:23]} Qh4 {[%emt 0:02:30]} 17. Rac1 {[%emt 0:00:19]} Rf7 {[%emt 0:02:30]} 18. c5 {[%emt 0:04:01]} Bg6 {[%emt 0:07:30]} 19. cxd6 {[%emt 0:05:39]} cxd6 {[%emt 0:00:30]} 20. Rc3 {[%emt 0:03:00]} a6 {[%emt 0:13:30]} 21. Rfc1 {[%emt 0:02:44]} Raf8 {[%emt 0:00:30]} 22. f3 {[%emt 0:02:50]} Qf6 {[%emt 0:06:30]} 23. Ng3 {[%emt 0:02:36]} Qf4 {[%emt 0:01:30]} 24. Ne4 {[%emt 0:01:04]} Qxe3+ {[%emt 0:02:30]} 25. Rxe3 {[%emt 0:00:06]} Bxe4 {[%emt 0:00:00]} 26. Rxe4 {[%emt 0:01:15]} Rf4 {[%emt 0:01:00]} 27. Rc7 {[%emt 0:00:35]} R8f7 {[%emt 0:01:30]} 28. Rc8+ {[%emt 0:00:30]} Rf8 {[%emt 0:00:30]} 29. Rc7 {[%emt 0:00:30]} R8f7 {[%emt 0:00:00]} 30. Rc8+ {[%emt 0:00:24]} Rf8 {[%emt 0:00:00]} 31. Rc7 {[%emt 0:01:04]} b6 {[%emt 0:00:00]} 32. Rc8 {[%emt 0:00:31]} 1/2-1/2

[Event "4th Baskent University Open 2019"]
[Site "Ankara"]
[Date "2019.06.18"]
[Round "3"]
[White "Sahin, Arda"]
[Black "Sakmak, Kutay"]
[Result "1-0"]
[ECO "A43"]
[WhiteElo "1710"]
[BlackElo "1355"]
[Annotator "NA"]
[PlyCount "87"]
[EventDate "2019.06.18"]
[EventType "swiss"]
[EventCountry "TUR"]
[SourceTitle "playchess.com"]
[Source "ChessBase"]
[SourceQuality "1"]
[TimeControl "5400+30"]

1. d4 {[%emt 0:00:30]} Nf6 {[%emt 0:02:30]} 2. Bf4 {[%emt 0:00:00]} c5 {[%emt 0:00:30]} 3. d5 {[%emt 0:00:00]} d6 {[%emt 0:00:30]} 4. Nc3 {[%emt 0:00:30]} g6 {[%emt 0:01:30]} 5. e4 {[%emt 0:00:30]} Bg7 {[%emt 0:00:30]} 6. Nf3 {[%emt 0:00:30]} Nbd7 {[%emt 0:00:30]} 7. Bd3 {[%emt 0:04:30]} Qb6 {[%emt 0:02:30]} 8. Rb1 {[%emt 0:20:30]} Ng4 {[%emt 0:02:30]} 9. O-O {[%emt 0:00:30]} O-O {[%emt 0:02:30]} 10. Nd2 {[%emt 0:10:30]} Nge5 {[%emt 0:01:30]} 11. Be2 {[%emt 0:01:30]} h6 {[%emt 0:05:30]} 12. Be3 {[%emt 0:03:30]} Nf6 {[%emt 0:01:30]} 13. h3 {[%emt 0:01:30]} Qd8 {[%emt 0:05:30]} 14. f4 {[%emt 0:00:30]} Ned7 {[%emt 0:00:00]} 15. Nc4 {[%emt 0:00:30]} b5 {[%emt 0:02:00]} 16. e5 {[%emt 0:04:30]} bxc4 {[%emt 0:05:30]} 17. exf6 {[%emt 0:00:00]} Nxf6 {[%emt 0:00:00]} 18. Bxc4 {[%emt 0:00:00]} Rb8 {[%emt 0:03:00]} 19. Qd2 {[%emt 0:17:30]} Kh7 {[%emt 0:02:30]} 20. Rfe1 {[%emt 0:02:30]} Rb4 {[%emt 0:08:30]} 21. Qe2 {[%emt 0:07:30]} h5 {[%emt 0:03:30]} 22. a3 {[%emt 0:05:03]} Rb8 {[%emt 0:00:30]} 23. b4 {[%emt 0:09:34]} cxb4 {[%emt 0:02:30]} 24. Rxb4 {[%emt 0:00:32]} Ra8 {[%emt 0:04:30]} 25. Bd4 {[%emt 0:05:29]} Re8 {[%emt 0:00:30]} 26. Qf2 {[%emt 0:01:55]} a5 {[%emt 0:01:30]} 27. Bb6 {[%emt 0:00:27]} Qd7 {[%emt 0:00:30]} 28. Bb5 {[%emt 0:02:51]} Qf5 {[%emt 0:00:30]} 29. Rbb1 {[%emt 0:00:34]} Bd7 {[%emt 0:00:30]} 30. Bd3 {[%emt 0:00:16]} Ne4 {[%emt 0:00:30]} 31. Nxe4 {[%emt 0:00:41]} Qxd5 {[%emt 0:00:30]} 32. Ng5+ {[%emt 0:00:34]} Kg8 {[%emt 0:00:30]} 33. Be4 {[%emt 0:00:00]} Qc4 {[%emt 0:00:30]} 34. Bxa8 {[%emt 0:00:15]} Rxa8 {[%emt 0:00:00]} 35. Re4 {[%emt 0:01:16]} Qa2 {[%emt 0:00:00]} 36. Rbe1 {[%emt 0:00:54]} e6 {[%emt 0:00:30]} 37. Bd4 {[%emt 0:00:05]} Qxa3 {[%emt 0:00:30]} 38. Ra1 {[%emt 0:00:30]} Qxa1+ {[%emt 0:01:30]} 39. Bxa1 {[%emt 0:00:30]} Bxa1 {[%emt 0:00:00]} 40. g4 {[%emt 0:00:30]} a4 {[%emt 0:00:00]} 41. gxh5 {[%emt 0:01:00]} a3 {[%emt 0:00:30]} 42. hxg6 {[%emt 0:00:01]} fxg6 {[%emt 0:00:30]} 43. Qh4 {[%emt 0:00:23]} Be8 {[%emt 0:01:30]} 44. Qh7+ {[%emt 0:00:06]} 1-0

[Event "4th Baskent University Open 2019"]
[Site "Ankara"]
[Date "2019.06.18"]
[Round "3"]
[White "Cevizci, Yusuf Baran"]
[Black "Kaplan, Cem Azad"]
[Result "1-0"]
[ECO "C02"]
[WhiteElo "1670"]
[BlackElo "1598"]
[Annotator "NA"]
[PlyCount "165"]
[EventDate "2019.06.18"]
[EventType "swiss"]
[EventCountry "TUR"]
[SourceTitle "playchess.com"]
[Source "ChessBase"]
[SourceQuality "1"]
[TimeControl "5400+30"]

1. e4 {[%emt 0:00:30]} e6 {[%emt 0:00:30]} 2. d4 {[%emt 0:00:30]} d5 {[%emt 0:00:30]} 3. e5 {[%emt 0:01:30]} c5 {[%emt 0:00:30]} 4. c3 {[%emt 0:00:00]} Nc6 {[%emt 0:00:00]} 5. Nf3 {[%emt 0:00:00]} Qb6 {[%emt 0:00:00]} 6. Na3 {[%emt 0:00:30]} Nh6 {[%emt 0:04:30]} 7. Bd3 {[%emt 0:00:30]} c4 {[%emt 0:03:30]} 8. Be2 {[%emt 0:00:30]} Bxa3 {[%emt 0:01:30]} 9. bxa3 {[%emt 0:00:30]} Nf5 {[%emt 0:00:30]} 10. O-O {[%emt 0:00:30]} Qa5 {[%emt 0:06:30]} 11. Qc2 {[%emt 0:01:30]} Bd7 {[%emt 0:00:30]} 12. Rb1 {[%emt 0:00:30]} Nd8 {[%emt 0:00:30]} 13. Bd1 {[%emt 0:02:30]} b5 {[%emt 0:02:30]} 14. h3 {[%emt 0:01:30]} a6 {[%emt 0:03:30]} 15. Re1 {[%emt 0:05:30]} Nc6 {[%emt 0:00:30]} 16. Be2 {[%emt 0:03:30]} h6 {[%emt 0:02:30]} 17. Bb2 {[%emt 0:02:30]} Qd8 {[%emt 0:01:30]} 18. Bc1 {[%emt 0:03:30]} Nh4 {[%emt 0:03:30]} 19. a4 {[%emt 0:03:30]} Nxf3+ {[%emt 0:01:30]} 20. Bxf3 {[%emt 0:00:30]} Ne7 {[%emt 0:00:30]} 21. Ba3 {[%emt 0:00:30]} O-O {[%emt 0:11:30]} 22. Bg4 {[%emt 0:13:30]} Re8 {[%emt 0:01:30]} 23. f4 {[%emt 0:01:30]} g6 {[%emt 0:01:30]} 24. Qf2 {[%emt 0:00:30]} Nf5 {[%emt 0:00:30]} 25. Bxf5 {[%emt 0:00:30]} gxf5 {[%emt 0:00:30]} 26. Qf3 {[%emt 0:01:30]} Qh4 {[%emt 0:03:30]} 27. Kh2 {[%emt 0:00:00]} Kg7 {[%emt 0:05:30]} 28. a5 {[%emt 0:00:00]} Rg8 {[%emt 0:01:30]} 29. Bc5 {[%emt 0:02:30]} Kh7 {[%emt 0:00:30]} 30. g3 {[%emt 0:00:30]} Qd8 {[%emt 0:00:30]} 31. Bb4 {[%emt 0:00:30]} Rg6 {[%emt 0:01:30]} 32. Rg1 {[%emt 0:00:30]} Bc6 {[%emt 0:02:30]} 33. Qh5 {[%emt 0:00:30]} Ra7 {[%emt 0:04:30]} 34. g4 {[%emt 0:00:30]} fxg4 {[%emt 0:00:30]} 35. Rxg4 {[%emt 0:01:30]} Rxg4 {[%emt 0:00:30]} 36. hxg4 {[%emt 0:00:00]} Qg8 {[%emt 0:00:30]} 37. Rh1 {[%emt 0:03:00]} Qg6 {[%emt 0:00:30]} 38. Qxg6+ {[%emt 0:00:30]} Kxg6 {[%emt 0:00:30]} 39. Kg3 {[%emt 0:00:30]} Ra8 {[%emt 0:01:30]} 40. Kf3 {[%emt 0:01:30]} Rh8 {[%emt 0:00:30]} 41. Rg1 {[%emt 0:00:30]} Be8 {[%emt 0:00:30]} 42. Be7 {[%emt 0:00:30]} Bd7 {[%emt 0:01:30]} 43. a3 {[%emt 0:01:30]} Re8 {[%emt 0:00:30]} 44. Bf6 {[%emt 0:00:30]} Rc8 {[%emt 0:00:30]} 45. Rh1 {[%emt 0:00:00]} Re8 {[%emt 0:01:30]} 46. Ke3 {[%emt 0:00:00]} Rc8 {[%emt 0:01:30]} 47. Kf3 {[%emt 0:00:30]} Re8 {[%emt 0:00:30]} 48. Kg3 {[%emt 0:00:30]} Rc8 {[%emt 0:00:30]} 49. Rh5 {[%emt 0:00:00]} Rg8 {[%emt 0:00:30]} 50. Kh4 {[%emt 0:00:00]} Kh7 {[%emt 0:03:30]} 51. Bg5 {[%emt 0:02:30]} Rg6 {[%emt 0:01:30]} 52. Be7 {[%emt 0:00:00]} Kg7 {[%emt 0:00:30]} 53. g5 {[%emt 0:01:00]} Kg8 {[%emt 0:06:30]} 54. gxh6 {[%emt 0:01:30]} Kh7 {[%emt 0:00:30]} 55. Bf8 {[%emt 0:02:30]} Rg1 {[%emt 0:00:00]} 56. Rg5 {[%emt 0:00:00]} Rh1+ {[%emt 0:01:00]} 57. Kg4 {[%emt 0:03:00]} Rg1+ {[%emt 0:00:30]} 58. Kh3 {[%emt 0:00:30]} Rxg5 {[%emt 0:00:00]} 59. fxg5 {[%emt 0:00:00]} Kg6 {[%emt 0:03:03]} 60. Kg4 {[%emt 0:00:00]} Be8 {[%emt 0:01:42]} 61. Kf4 {[%emt 0:00:30]} Kh7 {[%emt 0:00:28]} 62. a4 {[%emt 0:00:00]} bxa4 {[%emt 0:00:39]} 63. Ba3 {[%emt 0:00:00]} Kg6 {[%emt 0:01:51]} 64. Bc1 {[%emt 0:00:30]} a3 {[%emt 0:01:46]} 65. Bxa3 {[%emt 0:00:00]} Ba4 {[%emt 0:00:13]} 66. Be7 {[%emt 0:00:00]} Bc2 {[%emt 0:01:43]} 67. Ke3 {[%emt 0:00:30]} Kh7 {[%emt 0:01:57]} 68. Kd2 {[%emt 0:00:30]} Ba4 {[%emt 0:00:00]} 69. Kc1 {[%emt 0:00:00]} Kg8 {[%emt 0:00:45]} 70. Kb2 {[%emt 0:00:00]} Be8 {[%emt 0:00:32]} 71. Ka3 {[%emt 0:00:00]} Bd7 {[%emt 0:00:00]} 72. Kb4 {[%emt 0:00:00]} Bb5 {[%emt 0:00:47]} 73. Kc5 {[%emt 0:00:00]} Ba4 {[%emt 0:00:12]} 74. Kb6 {[%emt 0:00:00]} Bb5 {[%emt 0:00:09]} 75. Kc7 {[%emt 0:00:30]} Ba4 {[%emt 0:00:00]} 76. Kd6 {[%emt 0:00:00]} Bc2 {[%emt 0:00:36]} 77. Bf6 {[%emt 0:00:00]} Kh7 {[%emt 0:01:04]} 78. Bd8 {[%emt 0:00:30]} Kg8 {[%emt 0:00:22]} 79. g6 {[%emt 0:00:30]} fxg6 {[%emt 0:04:10]} 80. Kxe6 {[%emt 0:00:30]} g5 {[%emt 0:03:46]} 81. Bxg5 {[%emt 0:00:00]} Be4 {[%emt 0:00:00]} 82. Kf6 {[%emt 0:00:00]} Kf8 {[%emt 0:00:31]} 83. e6 {[%emt 0:00:30]} 1-0

[Event "4th Baskent University Open 2019"]
[Site "Ankara"]
[Date "2019.06.18"]
[Round "3"]
[White "Genc, Mehmet Emin"]
[Black "Taban, Yagiz"]
[Result "0-1"]
[ECO "A83"]
[WhiteElo "1666"]
[BlackElo "1654"]
[Annotator "NA"]
[PlyCount "64"]
[EventDate "2019.06.18"]
[EventType "swiss"]
[EventCountry "TUR"]
[SourceTitle "playchess.com"]
[Source "ChessBase"]
[SourceQuality "1"]
[TimeControl "5400+30"]

1. d4 {[%emt 0:00:30]} f5 {[%emt 0:01:30]} 2. e4 {[%emt 0:00:30]} fxe4 {[%emt 0:00:00]} 3. Nc3 {[%emt 0:00:00]} Nf6 {[%emt 0:00:00]} 4. Bg5 {[%emt 0:00:00]} g6 {[%emt 0:04:30]} 5. f3 {[%emt 0:06:30]} exf3 {[%emt 0:06:30]} 6. Nxf3 {[%emt 0:00:30]} Bg7 {[%emt 0:01:30]} 7. Qd2 {[%emt 0:01:30]} d6 {[%emt 0:03:30]} 8. O-O-O {[%emt 0:00:00]} Bg4 {[%emt 0:18:30]} 9. Be2 {[%emt 0:04:00]} Nbd7 {[%emt 0:01:30]} 10. h3 {[%emt 0:00:00]} Be6 {[%emt 0:00:30]} 11. Bh6 {[%emt 0:01:00]} O-O {[%emt 0:12:30]} 12. Bxg7 {[%emt 0:00:30]} Kxg7 {[%emt 0:00:30]} 13. h4 {[%emt 0:00:30]} h5 {[%emt 0:11:30]} 14. Ng5 {[%emt 0:00:30]} Bf5 {[%emt 0:01:30]} 15. Rhf1 {[%emt 0:02:30]} Qe8 {[%emt 0:03:30]} 16. Rxf5 {[%emt 0:03:30]} gxf5 {[%emt 0:00:00]} 17. Ne6+ {[%emt 0:00:30]} Kh7 {[%emt 0:01:00]} 18. Nxc7 {[%emt 0:04:30]} Qg6 {[%emt 0:01:30]} 19. Nxa8 {[%emt 0:00:30]} Rxa8 {[%emt 0:00:30]} 20. Bd3 {[%emt 0:00:30]} Ne4 {[%emt 0:07:30]} 21. Qf4 {[%emt 0:01:30]} Ndf6 {[%emt 0:00:30]} 22. Rf1 {[%emt 0:02:30]} e6 {[%emt 0:01:30]} 23. Nxe4 {[%emt 0:00:30]} Nxe4 {[%emt 0:03:57]} 24. Bxe4 {[%emt 0:00:30]} fxe4 {[%emt 0:00:03]} 25. Qxd6 {[%emt 0:00:00]} Rg8 {[%emt 0:01:02]} 26. Qe5 {[%emt 0:01:00]} Rg7 {[%emt 0:01:17]} 27. Rf6 {[%emt 0:00:30]} Qxg2 {[%emt 0:00:40]} 28. Qxh5+ {[%emt 0:04:30]} Kg8 {[%emt 0:00:03]} 29. Rxe6 {[%emt 0:02:30]} Qg1+ {[%emt 0:02:12]} 30. Qd1 {[%emt 0:01:30]} Qe3+ {[%emt 0:00:03]} 31. Qd2 {[%emt 0:06:30]} Qg1+ {[%emt 0:00:30]} 32. Qd1 {[%emt 0:00:30]} Qe3+ {[%emt 0:00:30]} 0-1

[Event "4th Baskent University Open 2019"]
[Site "Ankara"]
[Date "2019.06.18"]
[Round "3"]
[White "Ince, Taylan Ruzgar"]
[Black "Keseroglu, Yigit Can"]
[Result "0-1"]
[ECO "B11"]
[WhiteElo "1654"]
[BlackElo "1559"]
[Annotator "NA"]
[PlyCount "63"]
[EventDate "2019.06.18"]
[EventType "swiss"]
[EventCountry "TUR"]
[SourceTitle "playchess.com"]
[Source "ChessBase"]
[SourceQuality "1"]
[TimeControl "5400+30"]

1. e4 {[%emt 0:00:30]} c6 {[%emt 0:01:30]} 2. Nc3 {[%emt 0:00:30]} d5 {[%emt 0:00:30]} 3. Nf3 {[%emt 0:00:00]} dxe4 {[%emt 0:00:00]} 4. Nxe4 {[%emt 0:00:00]} Bf5 {[%emt 0:00:00]} 5. Ng3 {[%emt 0:00:00]} Bg6 {[%emt 0:00:00]} 6. h4 {[%emt 0:01:00]} h6 {[%emt 0:01:00]} 7. Ne5 {[%emt 0:06:30]} Bh7 {[%emt 0:11:30]} 8. Qh5 {[%emt 0:01:30]} g6 {[%emt 0:01:30]} 9. Qf3 {[%emt 0:01:30]} Nf6 {[%emt 0:03:30]} 10. Bc4 {[%emt 0:01:30]} e6 {[%emt 0:01:30]} 11. c3 {[%emt 0:05:30]} Nbd7 {[%emt 0:00:30]} 12. Nxd7 {[%emt 0:03:30]} Nxd7 {[%emt 0:00:30]} 13. d4 {[%emt 0:00:00]} Bg7 {[%emt 0:02:30]} 14. Bf4 {[%emt 0:09:00]} O-O {[%emt 0:06:30]} 15. Qe3 {[%emt 0:13:30]} e5 {[%emt 0:00:30]} 16. dxe5 {[%emt 0:00:00]} Nxe5 {[%emt 0:00:30]} 17. Bxe5 {[%emt 0:02:00]} Bxe5 {[%emt 0:00:30]} 18. O-O {[%emt 0:00:30]} Qc7 {[%emt 0:00:30]} 19. Qxh6 {[%emt 0:03:30]} Bf4 {[%emt 0:00:00]} 20. Qxf8+ {[%emt 0:03:30]} Rxf8 {[%emt 0:00:00]} 21. Ne4 {[%emt 0:00:30]} Bh2+ {[%emt 0:03:30]} 22. Kh1 {[%emt 0:00:30]} Qf4 {[%emt 0:00:30]} 23. Ng5 {[%emt 0:02:30]} Qxc4 {[%emt 0:00:30]} 24. Kxh2 {[%emt 0:00:30]} Qxh4+ {[%emt 0:00:30]} 25. Nh3 {[%emt 0:00:00]} g5 {[%emt 0:00:30]} 26. g3 {[%emt 0:00:00]} Qh5 {[%emt 0:00:30]} 27. Kg2 {[%emt 0:00:30]} g4 {[%emt 0:00:30]} 28. Ng1 {[%emt 0:00:00]} Bd3 {[%emt 0:00:00]} 29. Rfe1 {[%emt 0:01:00]} f5 {[%emt 0:01:00]} 30. Re3 {[%emt 0:00:30]} Rd8 {[%emt 0:02:30]} 31. Rae1 {[%emt 0:02:30]} Be4+ {[%emt 0:00:30]} 32. Kf1 {[%emt 0:00:30]} 0-1

[Event "4th Baskent University Open 2019"]
[Site "Ankara"]
[Date "2019.06.18"]
[Round "3"]
[White "Gocer, Onur Saygin"]
[Black "Alak, Agdar"]
[Result "1/2-1/2"]
[ECO "B02"]
[WhiteElo "1595"]
[BlackElo "1529"]
[Annotator "NA"]
[PlyCount "98"]
[EventDate "2019.06.18"]
[EventType "swiss"]
[EventCountry "TUR"]
[SourceTitle "playchess.com"]
[Source "ChessBase"]
[SourceQuality "1"]
[TimeControl "5400+30"]

1. e4 {[%emt 0:00:30]} Nf6 {[%emt 0:00:30]} 2. Nc3 {[%emt 0:00:00]} d5 {[%emt 0:00:30]} 3. exd5 {[%emt 0:00:00]} Nxd5 {[%emt 0:00:00]} 4. d4 {[%emt 0:00:30]} Nxc3 {[%emt 0:00:00]} 5. bxc3 {[%emt 0:00:00]} g6 {[%emt 0:00:00]} 6. Nf3 {[%emt 0:01:00]} Bg7 {[%emt 0:00:00]} 7. Bd3 {[%emt 0:01:30]} O-O {[%emt 0:00:00]} 8. O-O {[%emt 0:00:30]} Nd7 {[%emt 0:01:00]} 9. Bb2 {[%emt 0:04:30]} c5 {[%emt 0:00:30]} 10. Re1 {[%emt 0:01:30]} Re8 {[%emt 0:00:30]} 11. Rb1 {[%emt 0:01:30]} Rb8 {[%emt 0:01:30]} 12. d5 {[%emt 0:03:30]} Qa5 {[%emt 0:01:30]} 13. c4 {[%emt 0:01:30]} Qxa2 {[%emt 0:02:30]} 14. Bxg7 {[%emt 0:00:30]} Kxg7 {[%emt 0:00:30]} 15. Ra1 {[%emt 0:00:00]} Qb2 {[%emt 0:00:00]} 16. Rxa7 {[%emt 0:00:00]} Qb6 {[%emt 0:03:00]} 17. Qa1+ {[%emt 0:02:30]} Qf6 {[%emt 0:00:30]} 18. Qxf6+ {[%emt 0:01:30]} Nxf6 {[%emt 0:00:30]} 19. Rb1 {[%emt 0:07:30]} e6 {[%emt 0:03:30]} 20. Rb5 {[%emt 0:10:30]} exd5 {[%emt 0:00:30]} 21. Rxc5 {[%emt 0:00:30]} dxc4 {[%emt 0:03:30]} 22. Bxc4 {[%emt 0:00:30]} Be6 {[%emt 0:00:30]} 23. h3 {[%emt 0:02:30]} Bxc4 {[%emt 0:01:30]} 24. Rxc4 {[%emt 0:00:00]} Re7 {[%emt 0:01:30]} 25. Nd4 {[%emt 0:01:00]} Rd7 {[%emt 0:00:30]} 26. Nb3 {[%emt 0:01:30]} b6 {[%emt 0:00:30]} 27. Rcc7 {[%emt 0:01:30]} Rbd8 {[%emt 0:00:30]} 28. Rab7 {[%emt 0:01:30]} Rxc7 {[%emt 0:01:30]} 29. Rxc7 {[%emt 0:00:30]} Rd7 {[%emt 0:00:30]} 30. Rc6 {[%emt 0:00:30]} Rb7 {[%emt 0:00:30]} 31. Nd4 {[%emt 0:00:30]} Rd7 {[%emt 0:03:30]} 32. Nf3 {[%emt 0:02:30]} Rb7 {[%emt 0:00:30]} 33. Ne5 {[%emt 0:00:30]} b5 {[%emt 0:02:30]} 34. Rc3 {[%emt 0:01:30]} Nd5 {[%emt 0:01:30]} 35. Rb3 {[%emt 0:00:00]} f6 {[%emt 0:01:30]} 36. Nc6 {[%emt 0:01:00]} Rb6 {[%emt 0:00:30]} 37. Nb4 {[%emt 0:03:30]} Nxb4 {[%emt 0:00:30]} 38. Rxb4 {[%emt 0:00:30]} Rc6 {[%emt 0:00:00]} 39. Rxb5 {[%emt 0:00:00]} Rxc2 {[%emt 0:00:00]} 40. Rb7+ {[%emt 0:00:00]} Kh6 {[%emt 0:00:00]} 41. Rf7 {[%emt 0:00:30]} Rc6 {[%emt 0:00:00]} 42. f4 {[%emt 0:00:00]} f5 {[%emt 0:03:30]} 43. Kf2 {[%emt 0:00:00]} Rc3 {[%emt 0:04:30]} 44. Re7 {[%emt 0:00:30]} Rb3 {[%emt 0:00:30]} 45. Re3 {[%emt 0:00:30]} Rxe3 {[%emt 0:00:30]} 46. Kxe3 {[%emt 0:00:30]} g5 {[%emt 0:00:30]} 47. fxg5+ {[%emt 0:00:30]} Kxg5 {[%emt 0:00:30]} 48. g3 {[%emt 0:00:30]} h5 {[%emt 0:00:30]} 49. Kf3 {[%emt 0:00:30]} h4 {[%emt 0:00:30]} 1/2-1/2

[Event "4th Baskent University Open 2019"]
[Site "Ankara"]
[Date "2019.06.18"]
[Round "3"]
[White "Gulceken, Sumeyye"]
[Black "Kanli, Alperen"]
[Result "1/2-1/2"]
[ECO "D20"]
[WhiteElo "1498"]
[BlackElo "1790"]
[Annotator "NA"]
[PlyCount "109"]
[EventDate "2019.06.18"]
[EventType "swiss"]
[EventCountry "TUR"]
[SourceTitle "playchess.com"]
[Source "ChessBase"]
[SourceQuality "1"]
[TimeControl "5400+30"]

1. d4 {[%emt 0:00:30]} d5 {[%emt 0:00:30]} 2. c4 {[%emt 0:00:00]} dxc4 {[%emt 0:00:30]} 3. e3 {[%emt 0:00:00]} Nf6 {[%emt 0:00:00]} 4. Bxc4 {[%emt 0:00:30]} e6 {[%emt 0:00:00]} 5. Nc3 {[%emt 0:00:00]} a6 {[%emt 0:00:00]} 6. a4 {[%emt 0:01:00]} b6 {[%emt 0:00:00]} 7. Nge2 {[%emt 0:01:30]} Bb7 {[%emt 0:00:30]} 8. O-O {[%emt 0:00:00]} Nbd7 {[%emt 0:00:00]} 9. Qb3 {[%emt 0:05:00]} Bd6 {[%emt 0:03:00]} 10. f3 {[%emt 0:01:30]} c5 {[%emt 0:17:30]} 11. d5 {[%emt 0:04:30]} exd5 {[%emt 0:01:30]} 12. Nxd5 {[%emt 0:00:00]} O-O {[%emt 0:07:30]} 13. Nxf6+ {[%emt 0:02:00]} Nxf6 {[%emt 0:01:30]} 14. e4 {[%emt 0:02:30]} Qc7 {[%emt 0:00:30]} 15. g3 {[%emt 0:01:30]} h6 {[%emt 0:04:30]} 16. Bf4 {[%emt 0:03:30]} Bxf4 {[%emt 0:04:30]} 17. gxf4 {[%emt 0:03:30]} Rad8 {[%emt 0:01:30]} 18. Rf2 {[%emt 0:02:30]} Kh8 {[%emt 0:06:30]} 19. Rg2 {[%emt 0:01:30]} Nh5 {[%emt 0:01:30]} 20. Qc3 {[%emt 0:03:30]} Qd6 {[%emt 0:05:30]} 21. Rf1 {[%emt 0:03:30]} Bc8 {[%emt 0:01:30]} 22. f5 {[%emt 0:02:30]} Qd7 {[%emt 0:07:30]} 23. Kh1 {[%emt 0:08:30]} Qd2 {[%emt 0:07:30]} 24. Qb3 {[%emt 0:03:30]} Qb4 {[%emt 0:02:30]} 25. Bxf7 {[%emt 0:03:30]} Qxb3 {[%emt 0:00:30]} 26. Bxb3 {[%emt 0:00:00]} b5 {[%emt 0:02:30]} 27. axb5 {[%emt 0:00:00]} axb5 {[%emt 0:00:00]} 28. Be6 {[%emt 0:11:30]} Bxe6 {[%emt 0:05:00]} 29. fxe6 {[%emt 0:00:00]} Rd2 {[%emt 0:00:30]} 30. Nf4 {[%emt 0:08:00]} Rxg2 {[%emt 0:00:30]} 31. Nxg2 {[%emt 0:00:30]} Re8 {[%emt 0:01:13]} 32. Rd1 {[%emt 0:00:30]} Rxe6 {[%emt 0:02:25]} 33. Rd5 {[%emt 0:00:30]} Ra6 {[%emt 0:00:07]} 34. Kg1 {[%emt 0:02:30]} g5 {[%emt 0:06:25]} 35. Rxc5 {[%emt 0:01:30]} Ra1+ {[%emt 0:00:43]} 36. Kf2 {[%emt 0:00:30]} b4 {[%emt 0:00:00]} 37. Rb5 {[%emt 0:01:30]} Rc1 {[%emt 0:00:00]} 38. Rxb4 {[%emt 0:02:30]} Rc2+ {[%emt 0:00:00]} 39. Kf1 {[%emt 0:00:30]} Rc1+ {[%emt 0:00:00]} 40. Ne1 {[%emt 0:02:30]} Nf4 {[%emt 0:00:00]} 41. Rd4 {[%emt 0:01:30]} Rb1 {[%emt 0:00:33]} 42. Rd2 {[%emt 0:02:14]} Kg7 {[%emt 0:00:00]} 43. Kf2 {[%emt 0:00:39]} Nh3+ {[%emt 0:03:27]} 44. Kg3 {[%emt 0:00:53]} Nf4 {[%emt 0:00:01]} 45. Ng2 {[%emt 0:01:28]} Nh5+ {[%emt 0:00:47]} 46. Kg4 {[%emt 0:00:56]} Nf6+ {[%emt 0:00:29]} 47. Kf5 {[%emt 0:00:43]} Rf1 {[%emt 0:00:05]} 48. f4 {[%emt 0:01:44]} gxf4 {[%emt 0:00:40]} 49. e5 {[%emt 0:00:32]} Nh5 {[%emt 0:00:30]} 50. Rd7+ {[%emt 0:00:58]} Kf8 {[%emt 0:00:00]} 51. e6 {[%emt 0:09:46]} f3 {[%emt 0:01:17]} 52. Nf4 {[%emt 0:02:39]} Ng7+ {[%emt 0:09:17]} 53. Kf6 {[%emt 0:02:28]} Ne8+ {[%emt 0:00:20]} 54. Kf5 {[%emt 0:00:47]} Ng7+ {[%emt 0:00:37]} 55. Ke4 {[%emt 0:00:30]} 1/2-1/2